bitfinex/quotes_BTCUSD_20250519
["timestamp","ask_amount","ask_price","bid_price","bid_amount"]
[1747630734362,0.77087153,102940.0,102930.0,0.001]
[1747630736165,0.20402196,102930.0,102920.0,0.00625381]
[1747630736390,0.32483136,102930.0,102920.0,0.00625381]
[1747630737362,0.32483136,102930.0,102920.0,0.00639888]
[1747630737989,0.32483136,102930.0,102920.0,0.00739888]
[1747630740454,0.32483136,102930.0,102920.0,0.01732055]
[1747630740664,0.32483136,102930.0,102920.0,0.00739888]
[1747630742887,0.31133136,102930.0,102920.0,0.00739888]
[1747630743286,0.33424241,102930.0,102920.0,0.03149888]
[1747630743498,0.31133136,102930.0,102920.0,0.03149888]
[1747630744699,0.31133136,102930.0,102920.0,0.00739888]
[1747630744924,0.31133136,102930.0,102920.0,0.01706081]
[1747630745131,0.31133136,102930.0,102920.0,0.00739888]
[1747630746368,0.33533136,102930.0,102920.0,0.00739888]
[1747630747824,0.33533136,102930.0,102920.0,0.01728423]
[1747630748616,0.33533136,102930.0,102920.0,0.01544423]
[1747630748952,0.31133136,102930.0,102920.0,0.03934423]
[1747630749182,0.31133136,102930.0,102920.0,0.01544423]
[1747630749988,0.31133136,102930.0,102920.0,0.03934423]
[1747630750625,0.31133136,102930.0,102920.0,0.01544423]
[1747630751900,0.31133136,102930.0,102920.0,0.02326531]
[1747630754675,0.23664806,102930.0,102920.0,0.58159099]
[1747630754883,0.01942982,102930.0,102920.0,0.60442308]
[1747630755096,0.01942916,102930.0,102920.0,0.6141387]
[1747630755319,0.43086748,102940.0,102930.0,0.56802215]
[1747630755534,0.24629347,102940.0,102930.0,0.60056702]
[1747630755750,0.23657861,102940.0,102930.0,0.60056702]
[1747630755967,0.25600711,102940.0,102930.0,0.60056702]
[1747630756171,0.24629281,102940.0,102930.0,0.60056702]
[1747630756382,0.24629281,102940.0,102930.0,0.6752482]
[1747630756630,0.24729281,102940.0,102930.0,0.6752482]
[1747630756885,0.2580072,102940.0,102930.0,0.6752482]
[1747630758797,0.2580072,102940.0,102930.0,0.68565832]
[1747630759607,0.24829281,102940.0,102930.0,0.68565832]
[1747630760181,0.20595354,102940.0,102930.0,0.68565832]
[1747630760386,0.21566737,102940.0,102930.0,0.68565832]
[1747630760585,0.20595354,102940.0,102930.0,0.68565832]
[1747630760797,0.21566737,102940.0,102930.0,0.68565832]
[1747630761007,0.20595354,102940.0,102930.0,0.68565832]
[1747630761212,0.19524,102940.0,102930.0,1.02558857]
[1747630761429,0.19098,102940.0,102930.0,1.05281723]
[1747630761878,0.19098,102940.0,102930.0,1.05381723]
[1747630762086,0.16768208,102940.0,102930.0,1.04866149]
[1747630762287,0.13273657,102940.0,102930.0,1.05066149]
[1747630762493,0.13273657,102940.0,102930.0,1.07137137]
[1747630763106,0.09259689,102940.0,102930.0,1.07137137]
[1747630763511,0.04405622,102940.0,102930.0,1.07137137]
[1747630763711,0.01942246,102970.0,102960.0,0.22338657]
[1747630763914,0.02913327,102970.0,102960.0,0.22338657]
[1747630764128,0.02913318,102970.0,102960.0,0.22338657]
[1747630764351,0.02913318,102970.0,102960.0,0.27878657]
[1747630764559,0.03884455,102970.0,102960.0,0.27878657]
[1747630764760,0.02913318,102970.0,102960.0,0.27878657]
[1747630764965,0.02961663,102970.0,102960.0,0.30218657]
[1747630765214,0.0233945,102970.0,102960.0,0.64218657]
[1747630765415,0.00048345,102970.0,102960.0,0.64218657]
[1747630765646,0.00048345,102970.0,102960.0,0.64844095]
[1747630765647,0.00248345,102970.0,102960.0,0.64844095]
[1747630765828,0.00348345,102970.0,102960.0,0.64844095]
[1747630766031,0.00348345,102970.0,102960.0,0.7602912]
[1747630766285,0.00448345,102970.0,102960.0,0.7638912]
[1747630766494,0.00048345,102970.0,102960.0,0.7638912]
[1747630766873,0.00048345,102970.0,102960.0,0.7678912]
[1747630769643,0.00048345,102970.0,102960.0,0.78609932]
[1747630771725,0.02778578,102990.0,102980.0,0.56334318]
[1747630771966,0.02793076,102990.0,102980.0,0.56334318]
[1747630772342,0.02793076,102990.0,102980.0,0.62334318]
[1747630772547,0.26290916,102990.0,102980.0,0.4]
[1747630772753,0.26055913,102990.0,102980.0,0.4]
[1747630772964,0.32695748,102990.0,102980.0,0.00625438]
[1747630774284,0.32695748,102990.0,102970.0,0.34]
[1747630774285,0.26043394,102980.0,102970.0,0.34]
[1747630774655,0.28393394,102980.0,102970.0,0.34]
[1747630775708,0.28393394,102980.0,102970.0,0.34620959]
[1747630776260,0.23683394,102980.0,102970.0,0.34620959]
[1747630776461,0.24654428,102980.0,102970.0,0.55015238]
[1747630776705,0.29254428,102980.0,102970.0,0.55015238]
[1747630776947,0.28283394,102980.0,102970.0,0.55015238]
[1747630777573,0.28283394,102980.0,102970.0,0.54044091]
[1747630777708,0.27312351,102980.0,102970.0,0.34620959]
[1747630780439,0.27312351,102980.0,102970.0,0.35592115]
[1747630780857,0.27312351,102980.0,102970.0,0.34620959]
[1747630785038,0.27312351,102980.0,102970.0,0.3540129]
[1747630788824,0.27312351,102980.0,102970.0,0.37412927]
[1747630791964,0.27312351,102980.0,102970.0,0.56836059]
[1747630792148,0.27312351,102980.0,102970.0,0.56055728]
[1747630792907,0.06571034,102980.0,102970.0,0.56055728]
[1747630793121,0.07175173,102980.0,102970.0,0.58969083]
[1747630793335,0.08146235,102980.0,102970.0,0.58969083]
[1747630793547,0.26596504,102980.0,102970.0,0.57997993]
[1747630793752,0.28826504,102980.0,102970.0,0.57997993]
[1747630794062,0.29234465,102980.0,102970.0,0.63997993]
[1747630794717,0.29234465,102980.0,102970.0,0.57997993]
[1747630795426,0.29234465,102980.0,102970.0,0.56957512]
[1747630797024,0.34703248,102980.0,102970.0,0.00620959]
[1747630798771,0.34703248,102980.0,102970.0,0.0140253]
[1747630801103,0.59584754,102980.0,102970.0,0.0140253]
[1747630801317,0.83710839,102980.0,102970.0,0.0140253]
[1747630801530,0.57375248,102980.0,102970.0,0.0140253]
[1747630802169,0.82256754,102980.0,102970.0,0.0140253]
[1747630802597,1.24188754,102980.0,102970.0,0.0140253]
[1747630802815,1.25642839,102980.0,102970.0,0.0140253]
[1747630803027,1.25742839,102980.0,102970.0,0.00620959]
[1747630803262,1.59842839,102980.0,102970.0,0.00620959]
[1747630803468,1.59742839,102980.0,102970.0,0.00620959]
[1747630803693,1.59642839,102980.0,102970.0,0.00620959]
[1747630803904,1.59942839,102980.0,102970.0,0.00620959]
[1747630804125,1.60342839,102980.0,102970.0,0.00620959]
[1747630804339,0.23658559,102960.0,102950.0,0.00781571]
[1747630804554,0.05204705,102960.0,102950.0,0.57122417]
[1747630804777,0.24658596,102960.0,102950.0,0.34781571]
[1747630804992,0.26047374,102960.0,102950.0,0.34781571]
[1747630805206,0.28527374,102960.0,102950.0,0.35730751]
[1747630806057,0.28527374,102960.0,102950.0,0.36354815]
[1747630806278,0.28627374,102960.0,102950.0,0.36354815]
[1747630806480,0.28627374,102960.0,102950.0,0.3732615]
[1747630806688,0.28727374,102960.0,102950.0,0.36354815]
[1747630806903,0.28704839,102960.0,102950.0,0.36354815]
[1747630807767,0.37435779,102960.0,102950.0,0.02354815]
[1747630807987,0.35144674,102960.0,102950.0,0.02354815]
[1747630808398,0.35144674,102960.0,102950.0,0.01405635]
[1747630808399,1.04984674,102960.0,102950.0,0.01405635]
[1747630809544,1.27568674,102960.0,102950.0,0.01405635]
[1747630809791,1.27568674,102960.0,102950.0,0.00624064]
[1747630811532,0.57728674,102960.0,102950.0,0.00624064]
[1747630813344,0.77154674,102960.0,102950.0,0.00624064]
[1747630813704,1.62351497,102960.0,102950.0,0.00624064]
[1747630813923,1.62331789,102960.0,102950.0,0.00624064]
[1747630814124,0.88530692,102960.0,102950.0,0.00624064]
[1747630814310,1.11098692,102960.0,102950.0,0.00624064]
[1747630814524,1.13412198,102960.0,102950.0,0.00624064]
[1747630814755,0.26201605,102940.0,102930.0,0.02806299]
[1747630814958,0.35932545,102940.0,102930.0,0.02806299]
[1747630815747,0.58608545,102940.0,102930.0,0.02806299]
[1747630816004,0.78034545,102940.0,102930.0,0.0187205]
[1747630816179,0.78034545,102940.0,102930.0,0.00671454]
[1747630816750,0.78034545,102940.0,102930.0,0.00579454]
[1747630817194,0.77995015,102940.0,102930.0,0.00679454]
[1747630817778,1.47835015,102940.0,102930.0,0.00679454]
[1747630818189,1.47835015,102940.0,102930.0,0.001]
[1747630818800,1.47772945,102940.0,102930.0,0.001]
[1747630819649,1.70316945,102940.0,102930.0,0.001]
[1747630822544,1.70203756,102940.0,102930.0,0.001]
[1747630827409,1.70198206,102940.0,102930.0,0.001]
[1747630828821,1.70198206,102940.0,102930.0,0.00723782]
[1747630829671,2.30533797,102940.0,102930.0,0.00723782]
[1747630829888,2.30491541,102940.0,102930.0,0.00723782]
[1747630830371,2.30491541,102940.0,102900.0,0.01823705]
[1747630830372,0.26167835,102910.0,102900.0,0.01823705]
[1747630830610,0.80934775,102910.0,102900.0,0.01823705]
[1747630830834,0.55324775,102910.0,102900.0,0.01823705]
[1747630831048,1.00356775,102910.0,102900.0,0.01823705]
[1747630831496,1.95078281,102910.0,102900.0,0.01823705]
[1747630831745,1.96532366,102910.0,102900.0,0.01823705]
[1747630832481,2.30532366,102910.0,102900.0,0.01823705]
[1747630832653,0.86427582,102890.0,102880.0,0.00014507]
[1747630832875,0.85497702,102880.0,102870.0,0.02070988]
[1747630833106,2.01630642,102880.0,102870.0,0.02085497]
[1747630833569,1.54261136,102880.0,102870.0,0.02085497]
[1747630833815,1.7773472,102880.0,102870.0,0.02085497]
[1747630834043,1.7773472,102880.0,102870.0,0.00014509]
[1747630834291,2.02616226,102880.0,102870.0,0.00014509]
[1747630835136,2.02610674,102880.0,102870.0,0.00014509]
[1747630835344,2.02554126,102880.0,102870.0,0.00014509]
[1747630837322,2.02954126,102880.0,102870.0,0.00014509]
[1747630837448,2.02854126,102880.0,102870.0,0.00014509]
[1747630838089,2.28035632,102880.0,102870.0,0.00014509]
[1747630839151,2.03154126,102880.0,102870.0,0.00014509]
[1747630839585,2.29035632,102880.0,102870.0,0.00014509]
[1747630840470,2.29027247,102880.0,102870.0,0.00014509]
[1747630841142,2.23059987,102880.0,102870.0,0.00014509]
[1747630841356,2.24031974,102880.0,102870.0,0.00014509]
[1747630841814,2.23731974,102880.0,102870.0,0.00014509]
[1747630842034,2.24131974,102880.0,102870.0,0.00014509]
[1747630842870,1.79107974,102880.0,102870.0,0.00014509]
[1747630843076,1.99234468,102880.0,102870.0,0.00014509]
[1747630843738,1.99634468,102880.0,102870.0,0.00014509]
[1747630844385,1.53626468,102880.0,102870.0,0.00014509]
[1747630844643,1.98634468,102880.0,102870.0,0.00014509]
[1747630844858,1.76178468,102880.0,102870.0,0.00014509]
[1747630845060,1.98630468,102880.0,102870.0,0.00014509]
[1747630848511,1.98602229,102880.0,102870.0,0.00014509]
[1747630849760,2.24483735,102880.0,102870.0,0.00014509]
[1747630849932,2.23483735,102880.0,102870.0,0.00014509]
[1747630850142,0.23687653,102820.0,102810.0,0.0061859]
[1747630850344,0.23687653,102820.0,102810.0,0.00666968]
[1747630850345,0.95541488,102820.0,102810.0,0.00666968]
[1747630851354,1.59422994,102820.0,102810.0,0.00666968]
[1747630851706,1.61856743,102820.0,102810.0,0.00666968]
[1747630851937,1.6506342,102820.0,102810.0,0.00666968]
[1747630852149,1.90944926,102820.0,102810.0,0.00666968]
[1747630852394,1.93938899,102820.0,102810.0,0.00666968]
[1747630852601,1.94938899,102820.0,102810.0,0.00666968]
[1747630852817,1.20862716,102820.0,102810.0,0.00666968]
[1747630853034,1.61724743,102820.0,102810.0,0.00666968]
[1747630853660,1.67527877,102820.0,102810.0,0.00666968]
[1747630854114,1.16868743,102820.0,102810.0,0.00666968]
[1747630854319,1.61716743,102820.0,102810.0,0.00666968]
[1747630854517,1.645188,102820.0,102810.0,0.00666968]
[1747630854659,1.67519877,102820.0,102810.0,0.00666968]
[1747630854859,1.645188,102820.0,102810.0,0.00666968]
[1747630855190,1.92514916,102820.0,102810.0,0.00666968]
[1747630855396,1.96515993,102820.0,102810.0,0.00666968]
[1747630855607,1.70634487,102820.0,102810.0,0.00666968]
[1747630855815,1.71634487,102820.0,102810.0,0.00666968]
[1747630856654,1.70634487,102820.0,102810.0,0.00666968]
[1747630856837,1.25786487,102820.0,102810.0,0.00666968]
[1747630857040,1.39300743,102820.0,102810.0,0.00666968]
[1747630857248,1.61712743,102820.0,102810.0,0.00666968]
[1747630857449,1.61912743,102820.0,102810.0,0.00666968]
[1747630858545,1.61908743,102820.0,102810.0,0.00666968]
[1747630858755,1.60729079,102820.0,102810.0,0.00666968]
[1747630858941,1.60829079,102820.0,102810.0,0.00666968]
[1747630859372,1.15989079,102820.0,102810.0,0.00666968]
[1747630859573,1.60825079,102820.0,102810.0,0.00666968]
[1747630859939,1.35943573,102820.0,102810.0,0.00666968]
[1747630860152,1.60825079,102820.0,102810.0,0.00666968]
[1747630860569,1.61225079,102820.0,102810.0,0.00666968]
[1747630861000,1.61221079,102820.0,102810.0,0.00666968]
[1747630861435,1.09979488,102820.0,102810.0,0.00666968]
[1747630861634,1.33829573,102820.0,102810.0,0.00666968]
[1747630862083,1.58711079,102820.0,102810.0,0.00666968]
[1747630862450,0.88997573,102820.0,102810.0,0.00666968]
[1747630862659,1.37889488,102820.0,102810.0,0.00666968]
[1747630864317,1.37881488,102820.0,102810.0,0.00666968]
[1747630864534,1.37481488,102820.0,102810.0,0.00666968]
[1747630864698,1.37481488,102820.0,102810.0,0.03056968]
[1747630864902,1.62262994,102820.0,102810.0,0.00666968]
[1747630865108,1.37381488,102820.0,102810.0,0.00666968]
[1747630865525,1.37377488,102820.0,102810.0,0.00666968]
[1747630866424,2.02493079,102820.0,102810.0,0.00666968]
[1747630866874,2.02593079,102820.0,102810.0,0.00666968]
[1747630867095,2.02793079,102820.0,102810.0,0.00666968]
[1747630867664,2.02593079,102820.0,102810.0,0.00666968]
[1747630867952,1.77711573,102820.0,102810.0,0.00666968]
[1747630868121,2.02593079,102820.0,102810.0,0.00666968]
[1747630868359,2.02493079,102820.0,102810.0,0.00666968]
[1747630869118,1.77611573,102820.0,102810.0,0.00666968]
[1747630869329,1.38831573,102820.0,102810.0,0.00666968]
[1747630869562,0.92557488,102820.0,102810.0,0.00666968]
[1747630869777,1.37361488,102820.0,102810.0,0.00666968]
[1747630870434,1.37357488,102820.0,102810.0,0.00666968]
[1747630870621,1.37357488,102820.0,102810.0,0.01288924]
[1747630870844,1.37357488,102820.0,102810.0,0.03578924]
[1747630871264,0.92557488,102820.0,102810.0,0.03578924]
[1747630871475,1.37357488,102820.0,102810.0,0.03578924]
[1747630871699,1.37457488,102820.0,102810.0,0.03578924]
[1747630874625,1.37457488,102820.0,102810.0,0.01288924]
[1747630876754,1.37437488,102820.0,102810.0,0.26694933]
[1747630876939,1.39728593,102820.0,102810.0,0.27667563]
[1747630877110,0.94460962,102820.0,102810.0,0.06268924]
[1747630878420,0.72116962,102820.0,102810.0,0.26694933]
[1747630878620,0.96744067,102820.0,102810.0,0.27667563]
[1747630878832,0.78265125,102820.0,102810.0,0.27730612]
[1747630879033,0.99661729,102820.0,102810.0,0.27730612]
[1747630879240,0.98689203,102820.0,102810.0,0.27730612]
[1747630879489,0.78265125,102820.0,102810.0,0.63675843]
[1747630879702,0.98689166,102820.0,102810.0,0.41304603]
[1747630879902,0.98689166,102820.0,102810.0,0.42277261]
[1747630880347,0.9771664,102820.0,102810.0,0.41304603]
[1747630880581,0.9761664,102820.0,102810.0,0.41304603]
[1747630880821,0.9761664,102820.0,102810.0,0.36324603]
[1747630881217,0.9761664,102820.0,102810.0,0.38694603]
[1747630881651,0.97611653,102820.0,102810.0,0.38694603]
[1747630882087,0.97611653,102820.0,102810.0,0.38894603]
[1747630882526,0.97611653,102820.0,102810.0,0.36524603]
[1747630883147,0.97611653,102820.0,102810.0,0.38874603]
[1747630883357,0.97611653,102820.0,102810.0,0.04874603]
[1747630883576,0.97611653,102820.0,102810.0,0.02524603]
[1747630883802,1.00051653,102820.0,102810.0,0.02524603]
[1747630884007,1.24932054,102820.0,102810.0,0.02524603]
[1747630884209,0.95320548,102820.0,102810.0,0.01488924]
[1747630884854,0.95320548,102820.0,102810.0,0.01588924]
[1747630885483,0.95320548,102820.0,102810.0,0.03988924]
[1747630885982,0.75147653,102820.0,102810.0,0.03788924]
[1747630886207,0.72856548,102820.0,102810.0,0.03788924]
[1747630886413,0.75147653,102820.0,102810.0,0.03688924]
[1747630886615,0.75147653,102820.0,102810.0,0.06058924]
[1747630886837,0.43108713,102820.0,102810.0,0.06058924]
[1747630887093,0.64449146,102820.0,102810.0,0.06058924]
[1747630887307,0.64549146,102820.0,102810.0,0.06058924]
[1747630887942,0.64449146,102820.0,102810.0,0.06258924]
[1747630889320,0.64177146,102820.0,102810.0,0.06358924]
[1747630892240,0.64177146,102820.0,102810.0,0.03988924]
[1747630893078,0.73908086,102820.0,102810.0,0.01588924]
[1747630893795,0.73908086,102820.0,102810.0,0.35588924]
[1747630894019,0.73908086,102820.0,102810.0,0.36369866]
[1747630894471,0.73908086,102820.0,102810.0,0.38859866]
[1747630894932,0.42462,102820.0,102810.0,0.60783226]
[1747630895155,0.42523102,102820.0,102810.0,0.61755884]
[1747630895373,0.44814207,102820.0,102810.0,0.61755884]
[1747630895825,0.52572631,102820.0,102810.0,0.38859866]
[1747630896067,0.52572631,102820.0,102810.0,0.02369866]
[1747630896699,0.52572631,102820.0,102810.0,0.36369866]
[1747630896919,0.53572631,102820.0,102810.0,0.41139866]
[1747630897364,0.19154,102820.0,102810.0,0.63511115]
[1747630897859,0.4249559,102820.0,102810.0,0.68538514]
[1747630898070,0.43468144,102820.0,102810.0,0.67565884]
[1747630898281,0.24044103,102820.0,102810.0,0.70483735]
[1747630898680,0.23071549,102820.0,102810.0,0.70483735]
[1747630898838,0.24044112,102820.0,102810.0,0.70483735]
[1747630899260,0.24044103,102820.0,102810.0,0.70483735]
[1747630900130,0.23071549,102820.0,102810.0,0.70483735]
[1747630900324,0.24044103,102820.0,102810.0,0.70483735]
[1747630901396,0.23071549,102820.0,102810.0,0.69702793]
[1747630901595,0.20126488,102820.0,102810.0,0.69702793]
[1747630901774,0.21098995,102820.0,102810.0,0.69702793]
[1747630902156,0.22071521,102820.0,102810.0,0.69702793]
[1747630902364,0.24044075,102820.0,102810.0,0.69702793]
[1747630902565,0.24044066,102820.0,102810.0,0.69702793]
[1747630903216,0.22098995,102820.0,102810.0,0.69702793]
[1747630903565,0.22071511,102820.0,102810.0,0.69702793]
[1747630903809,0.23071511,102820.0,102810.0,0.69702793]
[1747630904022,0.24044046,102820.0,102810.0,0.69702793]
[1747630904624,0.21098995,102820.0,102810.0,0.69702793]
[1747630905097,0.22071521,102820.0,102810.0,0.69702793]
[1747630905743,0.41550595,102820.0,102810.0,0.46358924]
[1747630905972,0.5257264,102820.0,102810.0,0.35588924]
[1747630906195,0.5489264,102820.0,102810.0,0.35588924]
[1747630906484,0.5732264,102820.0,102810.0,0.01588924]
[1747630908042,0.5732264,102820.0,102810.0,0.0237023]
[1747630908273,0.5732264,102820.0,102810.0,0.3637023]
[1747630908717,0.5357264,102820.0,102810.0,0.38315537]
[1747630908993,0.428417,102820.0,102810.0,0.3637023]
[1747630911405,0.5257264,102820.0,102810.0,0.3637023]
[1747630911609,0.5728264,102820.0,102810.0,0.3637023]
[1747630913549,1.2712264,102820.0,102810.0,0.3637023]
[1747630917479,1.2472264,102820.0,102810.0,0.37331631]
[1747630917944,0.23417631,102820.0,102810.0,0.5970288]
[1747630918176,0.20126497,102820.0,102810.0,0.6214288]
[1747630918417,0.19154,102820.0,102810.0,0.6468288]
[1747630918645,0.19154,102820.0,102810.0,0.73409783]
[1747630919295,0.16821364,102820.0,102810.0,0.73409783]
[1747630919523,0.16821364,102820.0,102810.0,0.72628477]
[1747630919756,0.16821364,102820.0,102810.0,0.72328477]
[1747630920184,0.16821364,102820.0,102810.0,0.72628477]
[1747630920389,0.16821364,102820.0,102810.0,1.72615217]
[1747630920616,0.16821364,102820.0,102810.0,1.74069302]
[1747630920865,0.13125364,102820.0,102810.0,1.74069302]
[1747630921091,0.13125364,102820.0,102810.0,1.71434702]
[1747630921311,0.09626769,102820.0,102810.0,1.22698317]
[1747630921522,0.09626769,102820.0,102810.0,1.04275417]
[1747630921746,0.09626769,102820.0,102810.0,1.04475417]
[1747630921945,0.09626769,102820.0,102810.0,1.05075417]
[1747630922172,0.09626769,102820.0,102810.0,1.04875417]
[1747630922617,0.11571792,102820.0,102810.0,0.95744477]
[1747630922840,0.31995814,102820.0,102810.0,0.93799246]
[1747630923070,0.12544346,102820.0,102810.0,0.95744477]
[1747630923292,0.32023354,102820.0,102810.0,0.11890325]
[1747630923522,0.32023354,102820.0,102810.0,0.30848982]
[1747630923732,0.32023354,102820.0,102810.0,0.64848973]
[1747630923952,0.32023354,102820.0,102810.0,0.63876343]
[1747630924436,0.32023354,102820.0,102810.0,0.64848982]
[1747630925096,0.43045399,102820.0,102810.0,0.43890944]
[1747630925307,0.42072845,102820.0,102810.0,0.37290944]
[1747630925523,0.45017953,102820.0,102810.0,0.59862231]
[1747630925960,0.45017953,102820.0,102810.0,0.6026225]
[1747630926383,0.35287013,102820.0,102810.0,0.6123488]
[1747630926593,0.34314478,102820.0,102810.0,0.59289611]
[1747630926801,0.34314478,102820.0,102810.0,0.6026225]
[1747630927465,0.09626769,102820.0,102810.0,0.64687471]
[1747630927685,0.09626769,102820.0,102810.0,0.67097471]
[1747630927912,0.09626769,102820.0,102810.0,1.99045648]
[1747630928140,0.09280799,102820.0,102810.0,1.99045648]
[1747630928591,0.09280799,102820.0,102810.0,1.95265348]
[1747630928805,0.09280799,102820.0,102810.0,1.96265348]
[1747630929023,0.09280799,102820.0,102810.0,2.17396729]
[1747630929276,0.09280799,102820.0,102810.0,1.95224729]
[1747630929534,0.09280799,102820.0,102810.0,1.62395829]
[1747630929756,0.09280799,102820.0,102810.0,1.57526629]
[1747630932959,0.09280799,102820.0,102810.0,1.59597617]
[1747630933170,0.05782318,102820.0,102810.0,1.59597617]
[1747630934033,0.05338318,102820.0,102810.0,1.59597617]
[1747630934692,0.0455997,102820.0,102810.0,1.59597617]
[1747630934906,0.0222775,102820.0,102810.0,1.59597617]
[1747630935144,0.0055075,102820.0,102810.0,1.59597617]
[1747630935366,0.0011375,102820.0,102810.0,1.59597617]
[1747630935589,0.12644269,102850.0,102840.0,0.56364723]
[1747630936269,0.12644269,102850.0,102840.0,0.62364723]
[1747630936517,0.13616558,102850.0,102840.0,0.61392405]
[1747630936742,0.34765673,102850.0,102840.0,0.4]
[1747630936978,0.45787718,102850.0,102840.0,0.06]
[1747630937217,0.21396472,102820.0,102810.0,0.36268253]
[1747630937438,0.22369064,102820.0,102810.0,0.22054387]
[1747630937669,0.28755127,102820.0,102810.0,0.01628369]
[1747630937892,0.28755127,102820.0,102810.0,0.02601027]
[1747630938118,0.28755127,102820.0,102810.0,0.23027026]
[1747630938356,0.28755127,102820.0,102810.0,0.57027026]
[1747630938574,0.28755127,102820.0,102810.0,0.57999646]
[1747630938769,0.28755127,102820.0,102810.0,0.25022901]
[1747630939043,0.28755127,102820.0,102810.0,0.24050281]
[1747630939279,0.28755127,102820.0,102810.0,0.58050281]
[1747630939507,0.07756185,102820.0,102810.0,0.59995493]
[1747630939744,0.07756185,102820.0,102810.0,0.59022892]
[1747630939968,0.07756185,102820.0,102810.0,0.58050281]
[1747630940203,0.29707653,102820.0,102810.0,0.36951624]
[1747630940425,0.38438593,102820.0,102810.0,0.36951624]
[1747630940652,0.38438593,102820.0,102810.0,0.37730778]
[1747630942178,0.39438593,102820.0,102810.0,0.59129407]
[1747630942391,0.28707653,102820.0,102810.0,0.57184138]
[1747630942610,0.27735127,102820.0,102810.0,0.38703446]
[1747630943517,0.26762573,102820.0,102810.0,0.37730778]
[1747630943737,0.36493513,102820.0,102810.0,0.37730778]
[1747630946615,0.34202408,102820.0,102810.0,0.02769377]
[1747630948960,0.34202408,102820.0,102810.0,0.22222737]
[1747630949182,0.34202408,102820.0,102810.0,0.02769377]
[1747630949597,0.34202408,102820.0,102810.0,0.01990223]
[1747630950728,0.34202408,102820.0,102810.0,0.21443583]
[1747630950937,0.24092526,102820.0,102810.0,0.59334102]
[1747630951155,0.03917577,102820.0,102810.0,0.59334102]
[1747630951357,0.06208682,102820.0,102810.0,0.59334102]
[1747630951561,0.26632713,102820.0,102810.0,0.6338889]
[1747630951796,0.07181245,102820.0,102810.0,0.65334121]
[1747630952008,0.2605769,102820.0,102810.0,0.35990223]
[1747630952223,0.3817863,102820.0,102810.0,0.35990223]
[1747630952971,0.3817863,102820.0,102810.0,0.36769377]
[1747630953621,0.37206076,102820.0,102810.0,0.36769377]
[1747630954060,0.37206076,102820.0,102810.0,0.37742045]
[1747630954705,0.37206076,102820.0,102810.0,0.36769377]
[1747630955623,0.37206076,102820.0,102810.0,0.35990223]
[1747630957105,0.36958076,102820.0,102810.0,0.35990223]
[1747630957312,0.31286406,102820.0,102810.0,0.35990223]
[1747630957741,0.25412169,102820.0,102810.0,0.57388871]
[1747630957944,0.25412225,102820.0,102810.0,0.57388871]
[1747630958157,0.25817136,102820.0,102810.0,0.35990223]
[1747630958377,0.27167136,102820.0,102810.0,0.35990223]
[1747630958819,0.27167136,102820.0,102810.0,0.42962891]
[1747630959234,0.27167136,102820.0,102810.0,0.35990223]
[1747630959692,0.27167136,102820.0,102810.0,0.36962891]
[1747630960374,0.27167136,102820.0,102810.0,0.35990223]
[1747630962107,0.25124031,102820.0,102810.0,0.36769377]
[1747630962999,0.34854971,102820.0,102810.0,0.36769377]
[1747630965579,0.34854971,102820.0,102810.0,0.35990223]
[1747630966049,0.25124031,102820.0,102810.0,0.35990223]
[1747630966272,0.22774031,102820.0,102810.0,0.35990223]
[1747630966940,0.26762244,102820.0,102810.0,0.56416232]
[1747630967171,0.26762244,102820.0,102810.0,0.57388871]
[1747630967377,0.27762244,102820.0,102810.0,0.57388871]
[1747630967576,0.24439709,102820.0,102810.0,0.56416232]
[1747630967859,0.23439709,102820.0,102810.0,0.58361463]
[1747630968035,0.24439709,102820.0,102810.0,0.57388871]
[1747630968270,0.03015612,102820.0,102810.0,0.59400403]
[1747630968485,0.00972393,102830.0,102820.0,0.57341609]
[1747630968702,0.02043105,102840.0,102830.0,0.56366926]
[1747630968924,0.26380174,102840.0,102830.0,0.61383741]
[1747630969134,0.24435529,102840.0,102830.0,0.4]
[1747630969342,0.37926469,102840.0,102830.0,0.4]
[1747630969550,0.37926469,102840.0,102830.0,0.40623255]
[1747630969976,0.37926469,102840.0,102830.0,0.34623255]
[1747630970808,0.37926469,102840.0,102830.0,0.34723255]
[1747630971726,0.37926469,102840.0,102830.0,0.35762167]
[1747630971982,0.35883364,102840.0,102830.0,0.01762167]
[1747630972192,0.57963364,102840.0,102830.0,0.01762167]
[1747630975047,0.8284487,102840.0,102830.0,0.01762167]
[1747630975524,0.35883364,102840.0,102830.0,0.01762167]
[1747630975742,0.57955364,102840.0,102830.0,0.01762167]
[1747630975964,0.57955364,102840.0,102830.0,0.00723255]
[1747630976561,0.35883364,102840.0,102830.0,0.00723255]
[1747630976768,0.57955364,102840.0,102830.0,0.00723255]
[1747630977194,0.77404364,102840.0,102830.0,0.00723255]
[1747630978775,0.55332364,102840.0,102830.0,0.00723255]
[1747630979223,0.77396364,102840.0,102830.0,0.00723255]
[1747630979421,0.75056364,102840.0,102830.0,0.00723255]
[1747630979624,0.50572364,102840.0,102830.0,0.22117768]
[1747630979832,0.50572364,102840.0,102830.0,0.21145309]
[1747630980059,0.49599999,102840.0,102830.0,0.00723255]
[1747630980262,0.49599999,102840.0,102830.0,0.01502957]
[1747630980462,0.50599999,102840.0,102830.0,0.55925011]
[1747630980631,0.19449,102840.0,102830.0,0.61262333]
[1747630980854,0.19449,102840.0,102830.0,0.66479134]
[1747630981261,0.19449,102840.0,102830.0,0.82210074]
[1747630982034,0.19449,102840.0,102830.0,0.83564159]
[1747630982264,0.17116975,102840.0,102830.0,1.94251059]
[1747630982473,0.17116975,102840.0,102830.0,1.27585245]
[1747630982687,0.13618959,102840.0,102830.0,1.27585245]
[1747630982916,0.16535969,102840.0,102830.0,0.81456507]
[1747630983142,0.13618959,102840.0,102830.0,0.8360136]
[1747630983351,0.13618959,102840.0,102830.0,0.81074559]
[1747630983560,0.13618959,102840.0,102830.0,0.83796743]
[1747630983768,0.13618959,102840.0,102830.0,0.84096743]
[1747630984207,0.13618959,102840.0,102830.0,1.75894628]
[1747630984651,0.14591277,102840.0,102830.0,0.79535765]
[1747630984864,0.13618959,102840.0,102830.0,0.77785993]
[1747630985077,0.01383889,102840.0,102830.0,0.81730078]
[1747630985289,0.01383889,102840.0,102830.0,0.96160078]
[1747630988121,0.02944078,102870.0,102860.0,0.56360375]
[1747630988561,0.03916159,102870.0,102860.0,0.56360375]
[1747630988783,0.03916159,102870.0,102860.0,0.62360375]
[1747630989007,0.22827516,102880.0,102870.0,0.54414095]
[1747630989008,0.24427193,102880.0,102870.0,0.54414095]
[1747630989235,0.22384088,102880.0,102870.0,0.55386157]
[1747630989445,0.22384088,102880.0,102870.0,0.54414095]
[1747630989886,0.22384088,102880.0,102870.0,0.60414095]
[1747630990098,0.22384088,102880.0,102870.0,0.6103735]
[1747630990308,0.22484088,102880.0,102870.0,0.6103735]
[1747630990512,0.22488917,102880.0,102870.0,0.6103735]
[1747630990717,0.22688917,102880.0,102870.0,0.6103735]
[1747630990919,0.22688917,102880.0,102870.0,0.61996154]
[1747630991325,0.03248737,102880.0,102870.0,0.64912322]
[1747630991578,0.03220695,102880.0,102870.0,0.64912322]